[Event "CCT Chessable Masters Playoffs 2025"]
[Site "Online"]
[Date "2025.02.18"]
[Round "2"]
[White "Nepomniachtchi, Ian"]
[Black "Nakamura, Hikaru"]
[Result "0-1"]
[Annotator "TA"]
[ECO "C54"]
[WhiteElo "2754"]
[BlackElo "2802"]
[PlyCount "118"]
[EventDate "2025.02.13"]
[EventType "k.o."]
[EventCountry "NET"]
[SourceTitle "playchess.com"]
[Source "ChessBase"]
[SourceQuality "1"]
[TimeControl "600"]

{[%evp 10,118,33,39,38,34,49,13,50,41,68,43,45,46,48,0,41,34,35,-15,52,25,25,22,25,25,41,25,25,27,43,29,37,37,37,45,44,45,42,28,31,0,0,0,0,-15,0,-80,-72,-98,-93,-204,-216,-206,-222,-217,-210,-178,-163,-191,-193,-183,-156,-164,-171,-243,-181,-238,-195,-293,-183,-175,-180,-186,-179,-401,-385,-400,-394,-406,-395,-513,-529,-550,-443,-475,-353,-487,-469,-460,-339,-362,-358,-403,-322,-286,0,-392,-370,-367,-367,-411,-411,-665,-589,-1176,-1152,-29985,-29986,-29998,-29999]} 1. e4 {[%emt 0:00:23]} e5 {[%emt 0:00:02]} 2. Nf3 {[%emt 0:00:02]} Nc6 {[%emt 0:00:00]} 3. Bc4 {[%emt 0:00:01]} Nf6 {[%emt 0:00:02]} 4. d3 {[%emt 0:00:00]} h6 {[%emt 0:00:02]} 5. c3 {[%emt 0:00:06]} Bc5 {[%emt 0:00:02]} 6. b4 {[%emt 0:00:01]} Be7 {[%emt 0:00:01] C54: Giuoco Piano: 4 c3 Nf6, main lines with 5 d4 and 5 d3.} 7. a4 {[%emt 0:00:06] Recently 7.Qb3 got a lot of attention.} O-O {[%emt 0:00:09]} 8. O-O {[%emt 0:00:03]} d6 {[%emt 0:00:10][%cal Bd7d6,Bd6d5][%mdl 32] The position is equal.} 9. a5 {[%emt 0:00:10]} Be6 {[%emt 0:00:10]} 10. Bxe6 {[%emt 0:00:09]} fxe6 {[%emt 0:00:00]} 11. Qb3 $146 {[%emt 0:00:16]} (11. b5 Nb8 12. Re1 Qe8 13. d4 exd4 14. Nxd4 Qf7 15. f3 Nbd7 16. c4 Nh5 17. Nc3 {0-1 Golubev,M (2461)-Atanejhad,S (2019) Titled Tuesday intern op 14th May Late blitz 2024 (7)}) 11... Qd7 {[%emt 0:00:07]} 12. h3 {[%emt 0:00:06]} (12. b5 $14 Nb8 13. d4) 12... b6 {[%emt 0:00:13]} 13. Be3 {[%emt 0:00:07]} d5 {[%emt 0:00:33]} 14. Nbd2 {[%emt 0:00:41]} (14. Qa4 $14) 14... Bd6 {[%emt 0:00:06]} (14... d4 $1 $11 15. cxd4 exd4) 15. axb6 {[%emt 0:00:46]} axb6 {[%emt 0:00:40]} 16. b5 {[%emt 0:00:07]} Na5 {[%emt 0:00:11]} 17. Qb1 {[%emt 0:00:14]} Rae8 {[%emt 0:00:17]} 18. Re1 {[%emt 0:00:04]} Qf7 {[%emt 0:00:17]} 19. Ra4 {[%emt 0:00:12]} Qh5 {[%emt 0:01:10]} 20. Nf1 {[%emt 0:00:06]} Nd7 {[%emt 0:00:10]} 21. Ng3 {[%emt 0:00:01]} Qf7 {[%emt 0:00:02]} 22. Re2 {[%emt 0:00:33]} Kh8 {[%emt 0:00:16]} 23. Qa2 {[%emt 0:00:05]} Qg8 {[%emt 0:00:13]} 24. Nh2 {[%emt 0:00:27]} Nb7 {[%emt 0:00:12]} 25. Ra7 {[%emt 0:00:14]} Ra8 {[%emt 0:00:05]} 26. Rxa8 {[%emt 0:00:10]} Rxa8 {[%emt 0:00:00]} 27. Qb1 {[%emt 0:00:01]} Ra3 {[%emt 0:00:04]} 28. Ra2 {[%emt 0:00:23]} (28. Ng4 $11 {keeps the balance.}) 28... Rxc3 $17 {[%emt 0:00:25]} 29. Nf3 {[%emt 0:00:48]} d4 {[%emt 0:00:16]} 30. Bc1 {[%emt 0:00:06]} (30. Bd2 $17 Rc5 (30... Ra3 31. Rxa3 Bxa3 32. Nf1 $17) 31. Kh2) 30... Ndc5 $19 {[%emt 0:00:18]} 31. Ne1 {[%emt 0:00:51]} Rb3 {[%emt 0:00:04]} 32. Rb2 {[%emt 0:00:05]} Rxb2 {[%emt 0:00:09]} 33. Qxb2 {[%emt 0:00:01]} Na5 {[%emt 0:00:23]} 34. Bd2 {[%emt 0:00:09]} Nab3 {[%emt 0:00:02]} 35. Bb4 {[%emt 0:00:01]} Qe8 {[%emt 0:00:00]} 36. Bxc5 {[%emt 0:00:02]} Nxc5 {[%emt 0:00:00]} 37. h4 {[%emt 0:00:07] White is weak on the dark squares} (37. Ne2 $142) 37... Qa8 {[%emt 0:00:36]} 38. Kh2 {[%emt 0:00:11]} (38. Nf1 {was called for.}) 38... Be7 {[%emt 0:00:04]} 39. Nf3 {[%emt 0:00:03]} (39. h5 $142) 39... Bf6 {[%emt 0:00:09]} 40. Nh5 {[%emt 0:00:05]} Qe8 {[%emt 0:00:47]} (40... Nxd3 41. Qd2 Nf4 (41... Qxe4 42. Nxf6 gxf6 43. Qxh6+ Kg8 44. Qxf6 $11) 42. Nxf4 exf4 43. e5 $11) 41. g4 {[%emt 0:00:03]} Qg6 {[%emt 0:00:05]} ({Don't play} 41... Nxd3 42. Qd2 Nc5 (42... Qxb5 43. Nxf6 Nf4 44. Nh5 $11) (42... Nf4 43. Nxf4 exf4 44. Qxf4 $15) 43. Nxf6) 42. Kg3 {[%emt 0:00:15] [#]} (42. Nxf6 {was the only defense.} gxf6 (42... Qxf6 43. Qe2 $17) 43. Qd2) 42... Nxd3 {[%emt 0:00:02]} 43. Qe2 {[%emt 0:00:01]} Nc5 {[%emt 0:00:02]} 44. Nd2 {[%emt 0:00:02]} Be7 {[%emt 0:00:02]} 45. Qf3 {[%emt 0:00:11]} Kg8 {[%emt 0:00:05]} 46. Qe2 {[%emt 0:00:01]} Qf7 {[%emt 0:00:01] [#]} 47. Kh3 {[%emt 0:00:03]} Bd6 {[%emt 0:00:21]} 48. Nc4 {[%emt 0:00:03]} d3 {[%emt 0:00:10]} 49. Qe3 {[%emt 0:00:01]} g6 {[%emt 0:00:01]} 50. Ng3 {[%emt 0:00:19]} Qf4 {[%emt 0:00:01]} 51. Qe1 {[%emt 0:00:03]} Nb3 {[%emt 0:00:05] ...Bc5 would now be deadly.} 52. Qd1 {[%emt 0:00:03]} Nc5 {[%emt 0:00:01]} 53. Qe1 {[%emt 0:00:01]} Kg7 {[%emt 0:00:04]} 54. h5 {[%emt 0:00:01]} g5 {[%emt 0:00:01]} 55. Kg2 {[%emt 0:00:00]} Qxg4 {[%emt 0:00:01]} 56. Qa1 {[%emt 0:00:01]} (56. f3 $142 Qf4 57. Nf1) 56... Qf4 {[%emt 0:00:01]} 57. Qa8 {[%emt 0:00:01] Prevents Nxe4} d2 {[%emt 0:00:01]} 58. Qa1 {[%emt 0:00:06]} Nxe4 {[%emt 0:00:01]} 59. Nxd6 {[%emt 0:00:13]} Qxf2+ {[%emt 0:00:01] Weighted Error Value: White=0.52/Black=0.28 (precise)   Mistake:       	White=9     	Black=1      Inaccurate:     	White=7     	Black=4      OK:         	White=15    	Black=19     Best:        	White=2     	Black=3} 0-1

[Event "CCT Chessable Masters Playoffs 2025"]
[Site "Online"]
[Date "2025.02.18"]
[Round "2"]
[White "Yu, Yangyi"]
[Black "Carlsen, Magnus"]
[Result "0-1"]
[Annotator "TA"]
[ECO "B31"]
[WhiteElo "2715"]
[BlackElo "2833"]
[PlyCount "144"]
[EventDate "2025.02.13"]
[EventType "k.o."]
[EventCountry "NET"]
[SourceTitle "playchess.com"]
[Source "ChessBase"]
[SourceQuality "1"]
[TimeControl "600"]

{[%evp 9,143,24,29,31,37,35,51,52,66,54,52,48,58,37,43,42,43,39,41,38,44,12,50,50,52,45,114,94,115,85,86,58,74,62,91,92,96,101,174,176,178,170,170,163,244,140,140,140,206,140,147,140,140,140,140,140,140,140,196,0,140,140,140,140,140,140,208,39,114,18,25,16,17,19,15,20,27,21,17,19,29,22,22,0,0,-32,-29,-49,0,0,0,-56,-56,-650,-650,-644,-645,-636,-622,-861,-827,-676,-448,-462,-429,-556,-555,-552,-531,-416,-350,-29957,-29957,-29956,-29959,-4922,-1517,-29972,-29970,-29979,-29980,-29978,-29980,-29986,-29987,-29988,8,-29985,-29986,-29991,-29992,-29993,-29994,-29995,-29996,-29999]} 1. e4 {[%emt 0:00:01]} c5 {[%emt 0:00:03]} 2. Nf3 {[%emt 0:00:01]} Nc6 {[%emt 0:00:02]} 3. Bb5 {[%emt 0:00:02]} g6 {[%emt 0:00:02]} 4. Bxc6 {[%emt 0:00:00]} dxc6 {[%emt 0:00:05]} 5. d3 {[%emt 0:00:02]} Qc7 {[%emt 0:00:01]} 6. O-O {[%emt 0:00:13] B31: Sicilian: 2...Nc6 3 Bb5 g6.} e5 {[%emt 0:00:01]} 7. a4 {[%emt 0:00:01]} a5 {[%emt 0:00:19]} 8. Na3 {[%emt 0:00:05] White is slightly better.} Bg7 {[%emt 0:00:14]} 9. Nc4 {[%emt 0:00:12]} Be6 {[%emt 0:00:03]} 10. b3 {[%emt 0:00:02]} Nf6 $146 {[%emt 0:00:28]} (10... Ne7 11. Ng5 Bxc4 12. bxc4 O-O 13. Rb1 h6 14. Nf3 f5 15. exf5 gxf5 16. Nh4 Kh7 {1-0 Paravyan,D (2601)-Adhiban,B (2589) PRO League KO Stage rapid 2023 (1.4)}) 11. Bb2 {[%emt 0:00:16]} (11. Nfxe5 b5 12. Bf4 (12. axb5 cxb5 13. Bf4 Nh5 $17) 12... Nh5 (12... bxc4 13. Nxg6 Qa7 14. Nxh8 $11) 13. Nxc6 Nxf4 14. axb5 Bd7 $19) 11... Nd7 {[%emt 0:00:04]} 12. Ng5 {[%emt 0:00:04]} Bxc4 {[%emt 0:00:02]} 13. bxc4 {[%emt 0:00:00]} h6 {[%emt 0:00:02]} 14. Nh3 {[%emt 0:00:06]} O-O {[%emt 0:00:31][%cal Ob7b5]} 15. Rb1 {[%emt 0:00:17]} Rae8 {[%emt 0:00:10]} 16. Bc3 {[%emt 0:00:14]} b6 {[%emt 0:00:01]} 17. Rb3 {[%emt 0:00:03]} f5 {[%emt 0:00:03]} (17... Kh7 $14) 18. exf5 $16 {[%emt 0:00:23]} gxf5 {[%emt 0:00:04]} 19. Qh5 {[%emt 0:00:06]} Qd6 {[%emt 0:01:07]} 20. Re1 {[%emt 0:01:10]} Re7 {[%emt 0:02:31]} 21. Rbb1 {[%emt 0:00:16]} Nf6 {[%emt 0:00:21]} 22. Qg6 {[%emt 0:00:07]} (22. Qxf5 $2 Nd5 $19) 22... Re6 {[%emt 0:00:12] White must now prevent ...Ng4.} 23. Qg3 {[%emt 0:00:39][%cal Re1e5]} (23. Rxb6 $2 Nd7 24. Qg3 Rg6 $19 (24... Nxb6 $2 25. Nf4 $19)) (23. Qxf5 Nd5 24. cxd5 Rxf5 $17) 23... Nh5 {[%emt 0:00:03]} (23... f4 $16 24. Qh4 Nd7) 24. Qh4 $18 {[%emt 0:00:16]} e4 {[%emt 0:00:14]} 25. Bxg7 {[%emt 0:00:08]} (25. Qxh5 Bxc3 26. Re3 Bd4) 25... Nxg7 {[%emt 0:00:01]} 26. Nf4 {[%emt 0:00:16]} (26. Rxb6 $2 exd3 27. Rf1 (27. Rxe6 $2 dxc2 28. Re1 Qd1 $19) 27... dxc2 $19) 26... Re5 {[%emt 0:00:06]} (26... Ree8 27. Red1 (27. Rxb6 $2 exd3 28. Nxd3 Rxe1+ 29. Nxe1 Qd1 $19) 27... Kh7 28. dxe4 (28. Rxb6 exd3 29. cxd3 Rb8 $18) 28... Qc7) 27. Qg3 {[%emt 0:00:10]} (27. Rxb6 $2 exd3 28. Nxd3 Rxe1+ (28... Qxd3 $2 29. Rf1 $19) 29. Nxe1 Qd1 $19) (27. Red1 $18) 27... exd3 $16 {[%emt 0:00:21]} 28. cxd3 {[%emt 0:00:18]} Rxe1+ {[%emt 0:00:04]} 29. Rxe1 {[%emt 0:00:01]} Kf7 {[%emt 0:00:00] Against Re6} 30. Qf3 {[%emt 0:00:41]} Re8 {[%emt 0:00:07]} 31. Rb1 {[%emt 0:00:02]} Rb8 {[%emt 0:00:15]} 32. g3 {[%emt 0:00:03]} Rb7 {[%emt 0:00:02]} 33. Re1 {[%emt 0:00:22]} Re7 {[%emt 0:00:03]} (33... Rd7 $16 {is a better defense.} 34. Kg2 Kf8) 34. Rb1 {[%emt 0:00:00]} (34. Rxe7+ $18 Kxe7 35. Qe2+ Kf7 36. Qb2) 34... Rb7 {[%emt 0:00:01]} 35. Qe2 {[%emt 0:00:06] White attacks} Re7 {[%emt 0:00:03]} 36. Qd1 {[%emt 0:00:06]} Rb7 {[%emt 0:00:01]} 37. Qf3 {[%emt 0:00:01]} Qf6 {[%emt 0:00:03]} (37... Kf8 $16 38. Kg2 Qf6) 38. Nd5 $2 {[%emt 0:00:20]} ({White should play} 38. d4 $1 $18 {[%cal Rd4c5]} cxd4 39. c5) 38... Qd8 {[%emt 0:00:16]} (38... Qd4 $14 39. Nf4 (39. Nxb6 Qd6 $16) (39. Rxb6 Rxb6 40. Nxb6 Qd6 $16) 39... Qd6) 39. Ne3 {[%emt 0:00:13]} (39. Nc3 $1 $16 Qd7 40. Re1) 39... Qxd3 $11 {[%emt 0:00:09]} 40. Rd1 {[%emt 0:00:01]} Qe4 {[%emt 0:00:01]} 41. Qxe4 {[%emt 0:00:08]} fxe4 {[%emt 0:00:00][%mdl 4096] Endgame KRN-KRN. Black is a pawn up.} 42. Rd6 {[%emt 0:00:00][%csl LRc6,LRh6]} b5 $1 {[%emt 0:00:01]} 43. cxb5 {[%emt 0:00:25]} (43. Rxh6 $2 bxa4 44. Rxc6 a3 45. Rxc5 a2 $19) 43... cxb5 {[%emt 0:00:01]} 44. axb5 {[%emt 0:00:16]} Rxb5 {[%emt 0:00:04]} 45. Rxh6 {[%emt 0:00:02]} Ne6 $1 {[%emt 0:00:02]} 46. Nc4 {[%emt 0:00:04] Strongly threatening Nd6+.} Rb4 {[%emt 0:00:09]} 47. Nxa5 {[%emt 0:00:05]} c4 {[%emt 0:00:04]} 48. Rh7+ {[%emt 0:00:15]} Kf6 {[%emt 0:00:02][%mdl 1024] Black has compensation.} (48... Kg6 $5 49. Rh8 c3 $11) 49. Rh6+ {[%emt 0:00:01]} Kf7 $1 {[%emt 0:00:02]} 50. Rh7+ $1 {[%emt 0:00:02]} Kg6 {[%emt 0:00:03]} 51. Re7 {[%emt 0:00:05][%mdl 8192]} (51. Rh8 $15 c3 52. Rc8) 51... Kf6 $1 $19 {[%emt 0:00:05]} 52. Re8 {[%emt 0:00:03]} c3 {[%emt 0:00:02]} 53. Rc8 {[%emt 0:00:01]} Nd4 $1 {[%emt 0:00:00]} 54. Kg2 {[%emt 0:00:19]} c2 {[%emt 0:00:01]} 55. Rc3 {[%emt 0:00:04]} e3 {[%emt 0:00:21]} 56. fxe3 {[%emt 0:00:02]} Rb2 {[%emt 0:00:02]} 57. Kf1 {[%emt 0:00:09] [#]} Ne2 {[%emt 0:00:20][%mdl 512]} 58. Rc6+ {[%emt 0:00:06]} Kf5 {[%emt 0:00:00]} 59. Nb3 {[%emt 0:00:01][%cal Oc6c4] [#]} Ke4 $1 {[%emt 0:00:00]} 60. Nd2+ $2 {[%emt 0:00:04] [#]} (60. g4 $19 Kxe3 (60... Rxb3 61. Kxe2 Rxe3+ 62. Kf2 $11) (60... Kd3 61. g5 $17) 61. g5) 60... Kd3 $1 {[%emt 0:00:03]} (60... Kxe3 $2 {loses.} 61. Nc4+ Kd4 62. Nxb2 $18) 61. Rd6+ {[%emt 0:00:06]} Kxe3 {[%emt 0:00:01]} 62. Nc4+ {[%emt 0:00:02]} Ke4 {[%emt 0:00:01]} (62... Kf3 $142 63. Nd2+ Kg4 64. Rg6+ Kf5) 63. Nd2+ {[%emt 0:00:06]} Kf5 {[%emt 0:00:04]} 64. Rc6 {[%emt 0:00:01]} c1=Q+ {[%emt 0:00:01]} 65. Rxc1 {[%emt 0:00:02]} Nxc1 {[%emt 0:00:00]} 66. Nc4 {[%emt 0:00:01]} Rxh2 {[%emt 0:00:01]} 67. Ne3+ {[%emt 0:00:00]} Ke5 $2 {[%emt 0:00:01]} (67... Ke4 {mates} 68. Ng4 Rc2 69. Ke1 Re2+ 70. Kd1 Kf3 71. Kxc1 Kxg4 72. Kd1 Rh2 73. Ke1 Kxg3 74. Kf1 Kf3 75. Ke1 Ke3 76. Kd1 Rg2 77. Kc1 Kd3 78. Kb1 Kc3 79. Ka1 Kb3 80. Kb1 Rg1#) 68. Kg1 $2 {[%emt 0:00:00][%mdl 8192]} (68. Ng4+ $11 Ke6 69. Nxh2) 68... Ra2 {[%emt 0:00:01] Black mates.} 69. Ng4+ {[%emt 0:00:01]} Ke4 {[%emt 0:00:01]} 70. Nf6+ {[%emt 0:00:01]} Kf3 {[%emt 0:00:00]} 71. Nd5 {[%emt 0:00:00]} Ne2+ {[%emt 0:00:01]} 72. Kf1 {[%emt 0:00:01]} Ra1# {[%emt 0:00:01] Quite a comeback for Black.   Weighted Error Value: White=0.46/Black=0.17 (very precise)   Loses game:     	White=1     	---        Missed win:     	White=1     	---        Mistake:       	White=4     	Black=6      Inaccurate:     	White=4     	Black=2      OK:         	White=22    	Black=15     Best:        	White=2     	Black=6      Strong:       	White=1     	Black=6      Brilliant:      	---       	Black=1} 0-1

[Event "CCT Chessable Masters Playoffs 2025"]
[Site "Online"]
[Date "2025.02.19"]
[Round "3"]
[White "Carlsen, Magnus"]
[Black "Erigaisi Arjun"]
[Result "1/2-1/2"]
[Annotator "TA"]
[ECO "C54"]
[WhiteElo "2833"]
[BlackElo "2801"]
[PlyCount "234"]
[EventDate "2025.02.13"]
[EventType "k.o."]
[EventCountry "NET"]
[SourceTitle "playchess.com"]
[Source "ChessBase"]
[SourceQuality "1"]
[TimeControl "600"]

{[%evp 13,234,14,16,14,17,5,31,22,20,24,19,13,54,12,12,18,27,18,22,19,26,0,0,0,0,0,0,-6,0,-5,-5,-4,0,0,0,0,6,6,250,251,251,251,251,251,258,258,258,258,258,258,258,258,258,257,258,216,274,273,455,454,626,583,797,797,534,797,795,793,733,677,614,534,534,298,2623,2581,5618,5275,5612,2555,12794,2814,29945,29946,29944,29953,29952,29954,29961,29965,29965,29965,29964,29966,29966,29968,29967,29969,29969,29970,29969,29971,29972,29968,29969,29970,29969,29968,29980,29981,29980,29981,29981,28,28,28,28,28,28,0,0,0,0,0,0,0,0,0,0,0,0,0,0,0,0,0,0,0,0,0,0,0,0,0,0,0,0,0,0,0,0,0,0,0,0,0,0,0,0,0,0,0,0,0,0,0,0,0,0,0,0,0,0,36,0,0,0,0,0,0,0,0,0,0,0,0,0,0,0,0,0,0,0,0,0,0,0,0,0,0,0,0,0,0,0,0,0,0,0,0,0,0,0,0,0,0,0,0,0,0,0,0,0]} 1. e4 {[%emt 0:00:02]} e5 {[%emt 0:00:02]} 2. Nf3 {[%emt 0:00:02]} Nc6 {[%emt 0:00:00]} 3. Bc4 {[%emt 0:00:01]} Nf6 {[%emt 0:00:02]} 4. d3 {[%emt 0:00:02]} Bc5 {[%emt 0:00:00]} 5. O-O {[%emt 0:00:02]} d6 {[%emt 0:00:01]} 6. c3 {[%emt 0:00:04]} O-O {[%emt 0:00:01]} 7. h3 {[%emt 0:00:14]} Bb6 $1 {[%emt 0:00:03][%mdl 4] 7...Bb6 is the modern continuation.} 8. a4 {[%emt 0:00:12] C54: Giuoco Piano: 4 c3 Nf6, main lines with 5 d4 and 5 d3.} a5 {[%emt 0:00:01]} 9. Nbd2 {[%emt 0:00:07][%cal Bb1d2,Bd2f1,Bf1e3][%mdl 32]} Re8 {[%emt 0:00:04]} 10. Re1 {[%emt 0:00:08] White is slightly better.} h6 {[%emt 0:00:01]} 11. Nf1 {[%emt 0:00:07]} Be6 {[%emt 0:00:03]} 12. Bb5 {[%emt 0:00:01]} d5 $146 {[%emt 0:00:38]} (12... Bd7 13. Ng3 Ne7 14. Bc4 Ng6 15. d4 exd4 16. cxd4 Be6 17. Bd3 Nf8 18. Be3 Bd7 {1-0 Spyropoulos,N (2403)-Sysolyatin,E (2271) Titled Tuesday intern op 7th July blitz 2020 (5)}) 13. Qc2 {[%emt 0:00:41]} (13. exd5 Bxd5 14. Bxc6 bxc6 15. Nxe5 Nd7 16. Ng4) 13... Qd6 {[%emt 0:00:11]} 14. Be3 {[%emt 0:00:07]} Bxe3 {[%emt 0:00:50]} 15. Nxe3 {[%emt 0:00:02]} dxe4 {[%emt 0:00:09]} 16. dxe4 {[%emt 0:00:02]} Qc5 {[%emt 0:00:00]} 17. b4 {[%emt 0:00:51]} axb4 {[%emt 0:00:04]} 18. cxb4 {[%emt 0:00:02]} Qxb4 {[%emt 0:00:34]} 19. Bxc6 {[%emt 0:00:01]} bxc6 {[%emt 0:00:00]} 20. Nxe5 {[%emt 0:00:01]} Qxe4 {[%emt 0:00:18]} (20... Bb3 {keeps more tension.} 21. Qxc6 Qxe4 22. Qc3 Bxa4 23. N3g4 Qf5) 21. Qxe4 {[%emt 0:00:03]} Nxe4 {[%emt 0:00:00]} 22. Nxc6 {[%emt 0:00:01]} Bd7 {[%emt 0:00:03]} 23. Nd5 {[%emt 0:00:26]} Bxc6 {[%emt 0:01:16]} 24. Nxc7 {[%emt 0:00:01]} Kf8 {[%emt 0:00:10]} 25. a5 {[%emt 0:00:41][%cal Oa5a6] next a6! is good for White.} Nc5 {[%emt 0:00:18]} 26. Rxe8+ $18 {[%emt 0:00:05]} Rxe8 {[%emt 0:00:04]} 27. Nxe8 {[%emt 0:00:02]} Bxe8 {[%emt 0:00:11]} 28. a6 {[%emt 0:00:01] [#]} Nxa6 {[%emt 0:00:07]} 29. Rxa6 {[%emt 0:00:02][%mdl 4096] Endgame KR-KB} Bb5 {[%emt 0:00:06]} 30. Rb6 {[%emt 0:00:05]} Bc4 {[%emt 0:00:03]} 31. Rb8+ {[%emt 0:01:08]} Ke7 {[%emt 0:00:01]} 32. Rg8 {[%emt 0:00:01]} Kf6 {[%emt 0:00:02]} 33. f3 {[%emt 0:00:07]} Kg6 {[%emt 0:00:06]} 34. Kf2 {[%emt 0:00:01]} f6 {[%emt 0:00:06]} 35. Rc8 {[%emt 0:00:01]} Be6 {[%emt 0:00:16]} (35... Ba6) 36. Rc7 {[%emt 0:00:02]} Kh7 {[%emt 0:00:01]} 37. Ke3 {[%emt 0:00:01]} Kg8 {[%emt 0:00:02]} 38. Kd4 {[%emt 0:00:01]} Kf8 {[%emt 0:00:03]} 39. Kc5 {[%emt 0:00:02]} Bb3 {[%emt 0:00:05]} 40. Kd6 {[%emt 0:00:04]} Ba2 {[%emt 0:00:09]} 41. Rc3 {[%emt 0:00:17]} Kf7 {[%emt 0:00:06]} 42. h4 {[%emt 0:00:09]} Kf8 {[%emt 0:00:02]} 43. g4 {[%emt 0:00:20]} Kf7 $2 {[%emt 0:00:01]} (43... g5 44. Rc8+ Kg7 45. Rc7+ Bf7 46. hxg5 hxg5) 44. f4 {[%emt 0:00:03] [#]} Kf8 {[%emt 0:00:07]} 45. Rc5 {[%emt 0:00:28] Hoping for Rc8+.} Kf7 {[%emt 0:00:06]} 46. Rc2 {[%emt 0:00:14]} (46. Rc7+ $142 Kf8 47. Rc3) 46... Bb3 {[%emt 0:00:01]} 47. Rc1 {[%emt 0:00:05]} (47. Rc7+ $142 Kg8 48. Rc1) 47... Ba2 {[%emt 0:00:03]} 48. Rc7+ {[%emt 0:00:11]} Kf8 {[%emt 0:00:01]} 49. g5 {[%emt 0:00:07]} hxg5 {[%emt 0:00:02]} 50. hxg5 {[%emt 0:00:04]} fxg5 {[%emt 0:00:22]} 51. fxg5 {[%emt 0:00:00]} Bb1 {[%emt 0:00:05]} 52. Rc1 {[%emt 0:00:01]} Bd3 {[%emt 0:00:07]} 53. Ke6 {[%emt 0:00:03][%cal Rc1c8]} Kg8 {[%emt 0:00:06]} 54. Ke7 {[%emt 0:00:06]} Be4 {[%emt 0:00:12]} 55. Rd1 {[%emt 0:00:04]} Bc2 {[%emt 0:00:11]} 56. Rd6 {[%emt 0:00:03]} Kh7 {[%emt 0:00:29]} 57. Kf8 {[%emt 0:00:01]} Bf5 {[%emt 0:00:05]} 58. Kf7 {[%emt 0:00:02]} Bc2 {[%emt 0:00:06]} 59. Ra6 {[%emt 0:00:13]} Bd3 {[%emt 0:00:16]} 60. Ra7 {[%emt 0:00:10]} Bc4+ {[%emt 0:00:01]} 61. Kf8 {[%emt 0:00:02]} Kg6 {[%emt 0:00:00]} 62. Rxg7+ {[%emt 0:00:02]} Kf5 {[%emt 0:00:01]} 63. Ke7 $2 {[%emt 0:00:11]} (63. g6 {mates} Bd5 64. Rd7 Be6 65. Re7 (65. g7 Bxd7 66. g8=Q Be6 $18) 65... Bc4 66. g7 Kf6 67. Re4 (67. g8=Q Bxg8 68. Kxg8 Kxe7 $11) 67... Bd5 68. Rf4+ (68. g8=R Bxe4 69. Rg7 Bc2 $11) 68... Ke5 69. Rf7 (69. g8=R Kxf4 70. Rg7 Be6 $14) 69... Bxf7 70. Kxf7) 63... Be2 $11 {[%emt 0:00:10]} 64. Kf7 {[%emt 0:00:23]} Bh5+ {[%emt 0:00:02]} 65. g6 {[%emt 0:00:01]} (65. Kf8 $5) 65... Kg5 {[%emt 0:00:00]} 66. Rg8 {[%emt 0:00:02]} Kf5 $1 {[%emt 0:00:01]} 67. Ke7 {[%emt 0:00:07]} (67. Rg7 $5) 67... Bxg6 {[%emt 0:00:01]} 68. Rf8+ {[%emt 0:00:00]} Ke5 {[%emt 0:00:00]} 69. Rf6 {[%emt 0:00:00]} Be4 {[%emt 0:00:00]} 70. Re6+ {[%emt 0:00:01]} Kd5 {[%emt 0:00:01]} 71. Kf6 {[%emt 0:00:00]} Bd3 {[%emt 0:00:00]} 72. Re5+ {[%emt 0:00:00]} Kd4 {[%emt 0:00:00]} 73. Re1 {[%emt 0:00:00]} Be4 {[%emt 0:00:01]} 74. Kg5 {[%emt 0:00:01]} Bd5 {[%emt 0:00:01]} 75. Kf4 {[%emt 0:00:01]} Bc4 {[%emt 0:00:01]} 76. Rd1+ {[%emt 0:00:00]} Kc3 {[%emt 0:00:02]} 77. Ke3 {[%emt 0:00:01]} Bb3 {[%emt 0:00:02]} 78. Rd7 {[%emt 0:00:02]} Kb2 {[%emt 0:00:02]} 79. Rc7 {[%emt 0:00:00]} Ba2 {[%emt 0:00:02]} 80. Kd2 {[%emt 0:00:01]} Ka1 {[%emt 0:00:02]} 81. Kc3 {[%emt 0:00:02]} Bb1 {[%emt 0:00:02]} 82. Rg7 {[%emt 0:00:00]} Ba2 {[%emt 0:00:01]} 83. Ra7 {[%emt 0:00:02]} Kb1 {[%emt 0:00:01]} 84. Rh7 {[%emt 0:00:00][%cal Rh7h1]} Ka1 {[%emt 0:00:00]} 85. Rh6 {[%emt 0:00:01]} Bb1 {[%emt 0:00:02]} 86. Kb3 {[%emt 0:00:01]} Ba2+ {[%emt 0:00:01]} 87. Ka3 {[%emt 0:00:00]} Bb1 {[%emt 0:00:04]} 88. Rh2 {[%emt 0:00:01]} Be4 {[%emt 0:00:01]} 89. Ra2+ {[%emt 0:00:00]} Kb1 {[%emt 0:00:01]} 90. Re2 {[%emt 0:00:00]} Bd3 {[%emt 0:00:01]} 91. Rd2 {[%emt 0:00:01][%cal Oa3b3]} Be4 {[%emt 0:00:01]} 92. Kb3 {[%emt 0:00:01][%cal Rd2d1]} Ka1 {[%emt 0:00:01]} 93. Ra2+ {[%emt 0:00:01]} Kb1 {[%emt 0:00:00]} 94. Re2 {[%emt 0:00:00][%cal Re2e1] The position is equal.} Bd5+ {[%emt 0:00:01]} 95. Kc3 {[%emt 0:00:00]} Ka1 {[%emt 0:00:02]} 96. Rd2 {[%emt 0:00:01]} Ba2 {[%emt 0:00:02]} 97. Kc2 {[%emt 0:00:01]} Bb1+ {[%emt 0:00:01]} 98. Kc1 {[%emt 0:00:00]} Ba2 {[%emt 0:00:01]} 99. Rd7 {[%emt 0:00:02]} Be6 {[%emt 0:00:02]} 100. Re7 {[%emt 0:00:01]} Ba2 {[%emt 0:00:01]} 101. Kc2 {[%emt 0:00:00]} Bb1+ {[%emt 0:00:01]} 102. Kb3 {[%emt 0:00:00]} (102. Kc1 $5) 102... Ba2+ {[%emt 0:00:00]} 103. Kc3 {[%emt 0:00:00]} (103. Ka3 $5) 103... Bb1 {[%emt 0:00:02]} 104. Rg7 {[%emt 0:00:02]} Ba2 {[%emt 0:00:01]} 105. Ra7 {[%emt 0:00:03]} Kb1 {[%emt 0:00:01]} 106. Ra6 {[%emt 0:00:00]} Ka1 {[%emt 0:00:01]} 107. Rb6 {[%emt 0:00:01]} Bb1 {[%emt 0:00:01]} 108. Rh6 {[%emt 0:00:03]} Ba2 {[%emt 0:00:00]} 109. Rh4 {[%emt 0:00:01]} Bb1 {[%emt 0:00:01]} 110. Rh2 {[%emt 0:00:01]} Ba2 {[%emt 0:00:00]} 111. Kb4 {[%emt 0:00:01]} Bb1 {[%emt 0:00:01]} 112. Kb3 {[%emt 0:00:01]} ({Don't take} 112. Ka3 $6 Bf5 $16) 112... Be4 {[%emt 0:00:01]} 113. Rd2 {[%emt 0:00:01]} Bb1 {[%emt 0:00:02]} 114. Ka3 {[%emt 0:00:02]} Bf5 {[%emt 0:00:01]} 115. Ra2+ {[%emt 0:00:00]} Kb1 {[%emt 0:00:00]} 116. Re2 {[%emt 0:00:00]} Bd3 {[%emt 0:00:01]} 117. Rf2 {[%emt 0:00:00] Intending Kb3 and mate.} Kc1 {[%emt 0:00:01] Black escapes into a draw.   Weighted Error Value: White=0.38/Black=0.66  Loses game:     	---       	Black=1      Mistake:       	---       	Black=2      Inaccurate:     	White=3     	Black=5      OK:         	White=16    	Black=33     Best:        	White=1     	Black=4      Strong:       	---       	Black=1} 1/2-1/2